Cogmind - Beta 14 *** ADVENTURER MODE // 2024.08.31 @ 15:34:49 Player: LegoMDS Result: Self-destructed Performance ------------- Evolutions (3) 1500 Regions Visited (6) 1200 Robots Destroyed (94) 470 Value Destroyed (2851) 2851 Prototype IDs (38) 760 Alien Tech Used (0) 0 Bonus (325) 325 TOTAL SCORE: 7106 Bonus ------- High Alert Combat Kills 25 Aligned with FarCom 300 Cogmind --------- Core Integrity 230/700 Matter 279/300 Energy 55/100 System Corruption 1% Temperature Cool (0) Movement Core (50) Location -7/Factory Parts ------- > --- POWER (2) -------- (None) > --- PROPULSION (4) --- (None) > --- UTILITY (4) ------ Advanced Targeting Computer Target Analyzer > --- WEAPON (3) ------- (None) > --- INVENTORY (5) ---- Compact Battery (200) Advanced ECM Suite Cloak of Protection Hacking Suite Peak State ------------ > --- POWER ------------ Light Nuclear Core Light Nuclear Core > --- PROPULSION ------- VTOL Module VTOL Module VTOL Module VTOL Module > --- UTILITY ---------- Advanced Weight Redist. System Advanced Targeting Computer Target Analyzer System Restoration Module > --- WEAPON ----------- Enhanced Autogun Gauss Rifle > --- INVENTORY -------- Compact Battery Advanced ECM Suite Cloak of Protection Hacking Suite Flak Cannon [Rating: 37] Favorites ----------- Power Light Nuclear Core Engine Light Ion Engine Power Core Light Nuclear Core Propulsion Aluminum Leg Leg Aluminum Leg Hover Unit Improved Hover Unit Flight Unit Flight Unit Utility Target Analyzer Device Improved Heat Sink Storage Small Storage Unit Processor Target Analyzer Weapon Axe Energy Gun Small Laser Ballistic Gun Light Assault Rifle Ballistic Cannon Light Cannon Launcher Mini Grenade Launcher Impact Weapon Makeshift Hammer Slashing Weapon Axe Build | -11 -10 -10 -10 -9 -8 -7 ------- Run | Yrd Mat Min Exi Min Mat Fac Slots Evolved 6 | . . . . . 4 2 Power 1 | . . . . . . 1 Propulsion 2 | . . . . . 1 1 Utility 2 | . . . . . 2 . Weapon 1 | . . . . . 1 . Parts Attached 85 | 6 1 6 . 2 30 40 Power 20 | 1 . 2 . . 5 12 Engine 6 | 1 . 1 . . 1 3 Core 14 | . . 1 . . 4 9 Reactor . | . . . . . . . Propulsion 19 | 2 . 2 . . 5 10 Treads . | . . . . . . . Leg 2 | 2 . . . . . . Wheel . | . . . . . . . Hover 5 | . . . . . 2 3 Flight 12 | . . 2 . . 3 7 Utility 21 | 1 1 1 . . 9 9 Device 18 | . 1 1 . . 9 7 Storage 1 | 1 . . . . . . Processor 2 | . . . . . . 2 Hackware . | . . . . . . . Protection . | . . . . . . . Artifact . | . . . . . . . Weapon 25 | 2 . 1 . 2 11 9 Energy Gun 3 | 1 . . . . . 2 Energy Cannon . | . . . . . . . Ballistic Gun 12 | 1 . . . 1 5 5 Ballistic Cannon 5 | . . 1 . . 2 2 Launcher 2 | . . . . . 2 . Special Weapon . | . . . . . . . Impact Weapon 2 | . . . . 1 1 . Slashing Weapon 1 | . . . . . 1 . Piercing Weapon . | . . . . . . . Special Melee Weapon . | . . . . . . . Unidentified Prototypes 5 | . . . . . 2 3 Parts Lost 43 | . . 2 . . 10 31 Power 10 | . . 1 . . 2 7 Propulsion 15 | . . 1 . . 4 10 Utility 9 | . . . . . 3 6 Weapon 9 | . . . . . 1 8 Highest Loss Streak 9 | . . 1 . . 9 7 To Critical Strikes . | . . . . . . . Average Slot Usage (%) 82 | . 97 97 100 92 90 65 Engine 5 | . 14 4 14 14 3 . Core 5 | . . 9 . . 4 8 Leg 8 | . 28 17 . . . . Hover 2 | . . . . . . 5 Flight 8 | . . 8 28 28 22 4 Device 17 | . 11 14 14 14 31 15 Storage 5 | . 14 14 14 14 . . Processor 4 | . . . . . . 10 Energy Gun 4 | . 14 9 . . . . Ballistic Gun 10 | . 14 14 14 7 8 9 Ballistic Cannon 2 | . . 4 14 14 2 3 Launcher 1 | . . . . . 7 . Slashing Weapon 3 | . . . . . 7 4 Peak Build Rating 37 | 6 8 10 9 12 26 37 Average Rating 17 | 4 7 9 8 8 20 26 On Entrance 9 | . 6 8 8 9 10 22 Naked Turns . | . . . . . . . Heaviest Build 28 | 10 11 14 12 14 28 23 Greatest Support 25 | 20 20 20 14 14 19 25 Greatest Overweight (x) 9 | . . 1 . . 9 7 Average Overweight (x) . | . . . . . . . Largest Inventory Capacity 8 | 8 8 8 8 8 8 5 Average Capacity 6 | 6 8 8 8 8 5 5 Most Carried 8 | 4 8 8 8 8 6 5 Average Carried 5 | 2 5 7 7 7 4 4 Final Capacity 8 | 8 8 8 8 8 5 5 Final Carried 8 | 2 8 7 7 7 4 4 Class Distribution -------------------- 58% | Mutant 18% | Scavenger-Mutant 14% | Infiltrator-Mutant 4% | Sprinter Dominant Class ---------------- Mutant | -10/Materials Mutant | -10/Mines Mutant | -10/Exiles Mutant | -9/Mines Scavenger-Mutant | -8/Materials Mutant | -7/Factory Resources | -11 -10 -10 -10 -9 -8 -7 ----------- Run | Yrd Mat Min Exi Min Mat Fac Matter Collected 1968 | 217 99 107 . . 423 1122 Remotely . | . . . . . . . Salvage Created 3535 | . 476 207 . . 914 1938 Parts 192 | . 37 7 . . 45 103 Haulers Intercepted 6 | . 2 . . . 2 2 Recyclers Shooed 3 | . . . . . . 3 Parts Field Recycled . | . . . . . . . Retrieved Matter . | . . . . . . . Parts Self-Destructed . | . . . . . . . Prevented . | . . . . . . . Kills | -11 -10 -10 -10 -9 -8 -7 ------- Run | Yrd Mat Min Exi Min Mat Fac Combat Hostiles Destroyed 66 | . 12 7 . . 16 31 Melee 9 | . . . . . 7 2 Guns 44 | . 12 5 . . 6 21 Cannons 13 | . . 2 . . 3 8 Classes Destroyed 13 | . 4 . . . 3 6 Worker 4 | . . . . . . 4 Builder 2 | . . . . . . 2 Hauler 6 | . 2 . . . 2 2 Recycler 9 | . . . . . . 9 Watcher 7 | . 3 . . . 1 3 Swarmer 19 | . 6 3 . . . 10 Grunt 30 | . 6 4 . . 9 11 Brawler 1 | . . . . . . 1 Duelist 1 | . . . . . 1 . Sentry 6 | . . . . . 5 1 Specialist 2 | . . . . . . 2 Hunter 4 | . . . . . 1 3 Programmer 3 | . . . . . . 3 Best Kill Streak 14 | . 4 3 . . 4 14 Combat Bots Only 7 | . 3 3 . . 4 7 Max Kills in Single Turn 7 | . 1 1 . . 1 7 Gunslinging . | . . . . . . . Exploded . | . . . . . . . Melee 1 | . . . . . 1 1 Uniques/NPCs Destroyed . | . . . . . . . Combat | -11 -10 -10 -10 -9 -8 -7 -------- Run | Yrd Mat Min Exi Min Mat Fac Hostile Shots Fired 489 | . 43 38 . . 140 268 Missed 163 | . 10 11 . . 36 106 Damage Taken 3757 | . 232 230 . . 1234 2061 Core 923 | . 34 45 . . 374 470 Absorbed by Shields . | . . . . . . . Ignored by Resistances 1094 | . 79 72 . . 348 595 Regen/Repaired (Parts) 43 | . . . . . 43 . Core Remaining (%) 66 | 100 . . . 68 32 . Volleys Fired 226 | . 46 23 . . 46 111 Largest 3 | . 2 2 . . 2 3 Hottest 97 | . 60 60 . . 69 97 Shots Fired 374 | . 86 44 . . 54 190 Gun 316 | . 86 36 . . 44 150 Cannon 56 | . . 8 . . 8 40 Launcher 2 | . . . . . 2 . Special . | . . . . . . . Kinetic 315 | . 46 31 . . 52 186 Thermal 53 | . 40 13 . . . . Explosive 2 | . . . . . 2 . Electromagnetic 4 | . . . . . . 4 Robot Hit Streak 27 | . 21 26 . . 21 27 Robot Miss Streak 6 | . 2 6 . . 3 2 Penetration Max 1 | . . . . . . 1 Secondary Targets 7 | . 3 1 . . . 3 Max Gunslinging Chain 1 | . 1 1 . . . 1 Shots Hit Robots 344 | . 65 32 . . 76 171 Core Hits 177 | . 32 14 . . 37 94 Critical Kills 2 | . 1 . . . . 1 Critical Parts Destroyed 4 | . . 1 . . . 3 Critical Strikes 15 | . 1 1 . . 3 10 Destroy 6 | . 1 1 . . . 4 Blast 3 | . . . . . . 3 Corrupt 1 | . . . . . . 1 Sever 5 | . . . . . 3 2 Melee Attacks 44 | . . . . . 32 12 Impact . | . . . . . . . Slashing 44 | . . . . . 32 12 Piercing . | . . . . . . . Sneak Attacks 4 | . . . . . 2 2 Combat Hostiles 2 | . . . . . 1 1 Follow-up Attacks . | . . . . . . . Damage Inflicted 7314 | . 625 352 . . 1964 4373 Guns 4323 | . 625 278 . . 660 2760 Cannons 920 | . . 74 . . 159 687 Explosions 652 | . . . . . 98 554 Melee 1419 | . . . . . 1047 372 Ramming . | . . . . . . . Kinetic 4657 | . 277 212 . . 819 3349 Thermal 1042 | . 348 140 . . . 554 Explosive 98 | . . . . . 98 . Electromagnetic 98 | . . . . . . 98 Impact . | . . . . . . . Slashing 1419 | . . . . . 1047 372 Piercing . | . . . . . . . Highest Corruption 4 | . . . . . . 4 Average Corruption 2 | . . . . . . 2 Corruption Purged 4 | . . . . . . 4 Corruption Blocked . | . . . . . . . Effects 19 | . . . . . . 19 Message Errors 6 | . . . . . . 6 Matter Fused 4 | . . . . . . 4 Heat Flow Errors 2 | . . . . . . 2 Energy Discharges 1 | . . . . . . 1 Parts Fused 2 | . . . . . . 2 Data Loss (minor) 1 | . . . . . . 1 Data Loss (major) 1 | . . . . . . 1 Alerts 1 | . . . . . . 1 Weapon Failures 1 | . . . . . . 1 Overload Shots . | . . . . . . . Overflow Damage 146 | . . . . . 25 121 Projectiles . | . . . . . . . Explosions 84 | . . . . . . 84 Melee 62 | . . . . . 25 37 Knockbacks 13 | . . 1 . . 2 10 Impact . | . . . . . . . Kinetic 11 | . . 1 . . 2 8 Secondary 2 | . . . . . . 2 Self-Inflicted Damage 7 | . . . . . 7 . Shots 1 | . . . . . 1 . Rammed . | . . . . . . . Targets Rammed . | . . . . . . . Kicked . | . . . . . . . Crushed . | . . . . . . . Highest Temperature 201 | . 20 62 . . 1 201 Average Temperature 39 | . 9 24 . . 1 56 Received Heat Transfer 1203 | . 93 138 . . 594 378 Siege Activations . | . . . . . . . Robots Corrupted . | . . . . . . . Combat Hostiles . | . . . . . . . Parts Fried . | . . . . . . . Impact Corruptions . | . . . . . . . Robots Melted . | . . . . . . . Combat Hostiles . | . . . . . . . Parts Melted 2 | . 1 . . . . 1 Heat Transferred 1575 | . 800 325 . . . 450 Parts Sabotaged . | . . . . . . . Parts Stolen . | . . . . . . . Parts Stripped . | . . . . . . . Power Chain Reactions . | . . . . . . . Alert | -11 -10 -10 -10 -9 -8 -7 ------- Run | Yrd Mat Min Exi Min Mat Fac Peak Influence 469 | . 269 187 . . 325 469 Initial 126 | . . 22 . . . 126 Average 139 | . 82 107 . . 137 190 Maximum Alert Level 2 | . 1 . . . 1 2 Low Security (%) 73 | 100 92 100 . 100 67 57 Level 1 21 | . 7 . . . 32 31 Level 2 4 | . . . . . . 10 Level 3 . | . . . . . . . Level 4 . | . . . . . . . Level 5 . | . . . . . . . High Security . | . . . . . . . Max Security . | . . . . . . . Squads Dispatched 9 | . 2 . . . 3 4 Investigation 5 | . 2 . . . 2 1 Extermination 1 | . . . . . . 1 Reinforcement 2 | . . . . . . 2 Assault . | . . . . . . . Garrison 1 | . . . . . 1 . Intercept . | . . . . . . . Searches Triggered . | . . . . . . . Construction Impeded . | . . . . . . . Haulers Reinforced 1 | . . . . . . 1 Active Scanning Responses . | . . . . . . . Cargo Convoy Interrupts 1 | . . . . . . 1 Stealth | -11 -10 -10 -10 -9 -8 -7 --------- Run | Yrd Mat Min Exi Min Mat Fac Distress Signals 5 | . . . . . 3 2 Communications Jammed . | . . . . . . . Distress Signals . | . . . . . . . Times Spotted 106 | . 15 8 . . 32 51 Peak Tracking Total 10 | . 3 3 . . 7 10 Tactical Retreats 7 | . . 1 . . 2 4 Traps | -11 -10 -10 -10 -9 -8 -7 ------- Run | Yrd Mat Min Exi Min Mat Fac Traps Triggered 6 | . 1 . . . 1 4 Indirectly . | . . . . . . . Trap Hack Attempts . | . . . . . . . Triggered . | . . . . . . . Disarmed . | . . . . . . . Reprogrammed . | . . . . . . . Reused . | . . . . . . . Traps Extracted . | . . . . . . . Installed . | . . . . . . . Triggered . | . . . . . . . Machines | -11 -10 -10 -10 -9 -8 -7 ---------- Run | Yrd Mat Min Exi Min Mat Fac Machines Disabled 4 | . . . . . . 4 Max in Single Turn 4 | . . . . . . 4 Machines Repaired . | . . . . . . . Machines Dismantled . | . . . . . . . Machines Sabotaged . | . . . . . . . Overloaded Fab Kills . | . . . . . . . Hacking | -11 -10 -10 -10 -9 -8 -7 --------- Run | Yrd Mat Min Exi Min Mat Fac Machines Accessed 21 | . 4 . 2 . 8 7 Terminals 15 | . 4 . . . 7 4 Fabricators 1 | . . . . . . 1 Repair Stations 1 | . . . . . 1 . Recycling Units 2 | . . . . . . 2 Scanalyzers . | . . . . . . . Garrison Access . | . . . . . . . Total Hacks 50 | . 11 . 5 . 21 13 Successful 27 | . 4 . 5 . 10 8 Failed 23 | . 7 . . . 11 5 Catastrophic . | . . . . . . . Database Lockouts . | . . . . . . . Manual 3 | . . . 1 . . 2 Terminals 36 | . 11 . . . 17 8 Fabricators 2 | . . . . . . 2 Repair Stations 4 | . . . . . 4 . Recycling Units 3 | . . . . . . 3 Scanalyzers . | . . . . . . . Garrison Access . | . . . . . . . Terminal Hacks 21 | . 4 . 5 . 8 4 Record 4 | . . . 4 . . . Prototype ID Bank 6 | . 1 . . . 4 1 Branch Access Points 2 | . 1 . . . . 1 Recall Reinforcements 1 | . . . . . 1 . Hauler Manifests 1 | . . . . . 1 . Registered Components 3 | . 1 . . . 1 1 Zone Layout 3 | . 1 . . . 1 1 Derelict Proto ID Bank 1 | . . . 1 . . . Fabricator Hacks 1 | . . . . . . 1 Network Status 1 | . . . . . . 1 Repair Station Hacks 2 | . . . . . 2 . Scan Component 1 | . . . . . 1 . Repair 1 | . . . . . 1 . Recycling Unit Hacks 2 | . . . . . . 2 Report Inventory 2 | . . . . . . 2 Scanalyzer . | . . . . . . . Garrison Access Hacks . | . . . . . . . Unauthorized Hacks 1 | . . . . . . 1 Terminals 1 | . . . . . . 1 Assimilate 1 | . . . . . . 1 Fabricators . | . . . . . . . Repair Stations . | . . . . . . . Recycling Units . | . . . . . . . Scanalyzers . | . . . . . . . Garrison Access . | . . . . . . . Data Cores Recovered . | . . . . . . . Used . | . . . . . . . Hacking Detections 13 | . 3 . . . 5 5 Full Trace Events 3 | . 1 . . . 2 . Feedback Events . | . . . . . . . Feedback Blocked . | . . . . . . . Robot Schematics Acquired . | . . . . . . . Robots Built . | . . . . . . . Authchips . | . . . . . . . Time . | . . . . . . . Total Robot Build Rating . | . . . . . . . Part Schematics Acquired . | . . . . . . . Parts Built . | . . . . . . . Authchips . | . . . . . . . Time . | . . . . . . . Total Part Build Rating . | . . . . . . . Parts Repaired 1 | . . . . . 1 . Time 32 | . . . . . 32 . Parts Recycled . | . . . . . . . Recycled Matter . | . . . . . . . Retrieved Matter . | . . . . . . . Retrieved Components . | . . . . . . . Parts Scanalyzed . | . . . . . . . Part Schematics Acquired . | . . . . . . . Parts Damaged . | . . . . . . . Bothacking | -11 -10 -10 -10 -9 -8 -7 ------------ Run | Yrd Mat Min Exi Min Mat Fac Used RIF Installer . | . . . . . . . Robots Hacked . | . . . . . . . Non-combat . | . . . . . . . Combat . | . . . . . . . Robot Hacks Applied . | . . . . . . . Relay Couplers Released 3 | . . . . . . 3 Programmers 3 | . . . . . . 3 Fabnet Peak Effective % . | . . . . . . . Robots Rewired . | . . . . . . . Allies Hacked . | . . . . . . . Hacks Repelled . | . . . . . . . Allies | -11 -10 -10 -10 -9 -8 -7 -------- Run | Yrd Mat Min Exi Min Mat Fac Total Allies . | . . . . . . . Largest Group . | . . . . . . . Highest-Rated Group . | . . . . . . . Highest-Rated Ally . | . . . . . . . Total Orders . | . . . . . . . Ally Attacks . | . . . . . . . Total Damage . | . . . . . . . Kills . | . . . . . . . Allies Corrupted . | . . . . . . . Allies Melted . | . . . . . . . Intel | -11 -10 -10 -10 -9 -8 -7 ------- Run | Yrd Mat Min Exi Min Mat Fac Robot Analysis Total . | . . . . . . . Derelict Logs Recovered 1 | . . 1 . . . . Drone Launches . | . . . . . . . Drone Recoveries . | . . . . . . . Exploration | -11 -10 -10 -10 -9 -8 -7 ------------- Run | Yrd Mat Min Exi Min Mat Fac Turns Passed 3339 | 48 884 260 96 34 631 1386 Spaces Moved 2805 | 33 614 247 256 78 691 886 Core 175 | 7 . . . . 6 162 Treads . | . . . . . . . Legs 746 | 26 614 106 . . . . Wheels . | . . . . . . . Hover 311 | . . . . . 17 294 Flight 1573 | . . 141 256 78 668 430 Fastest Speed 26 | 50 120 37 37 37 32 26 Average Speed 80 | 105 120 75 37 37 41 100 Slowest Speed 500 | 120 120 190 37 37 500 400 Overloaded Moves . | . . . . . . . Propulsion Burnouts . | . . . . . . . Robots Hopped 8 | . . . . . 5 3 Cave-ins Triggered . | . . . . . . . Exploration Rate (%) 43 | 3 74 60 67 14 61 26 Regions Visited 6 Branch Regions 3 Pre-discovered Areas 2 | . . 1 1 . . . Known Exits Taken 1 | . 1 . . . . . Unknown Exits Taken 5 | 1 . 1 1 1 1 . Scrap Searched 2 | . . 1 . 1 . . Spaces Dug . | . . . . . . . Terrain Destroyed 51 | . . . . . 27 24 Melee . | . . . . . . . Projectile . | . . . . . . . AOE 51 | . . . . . 27 24 Terrain Rammed . | . . . . . . . Walls Destroyed . | . . . . . . . Machines Disabled . | . . . . . . . Actions | -11 -10 -10 -10 -9 -8 -7 --------- Run | Yrd Mat Min Exi Min Mat Fac Total 3475 | 46 686 280 257 82 935 1189 Wait 243 | . 11 1 . . 114 117 Move 2785 | 32 613 246 255 77 681 881 Hop 6 | . . . . . 4 2 Pick Up 50 | 8 11 2 1 1 11 16 Fast Attach 29 | . . . . 1 6 22 Attach 37 | 6 1 3 . . 13 14 Detach 2 | . . . . . 2 . Swap 19 | . . 3 . 1 11 4 Drop 34 | . 4 2 1 2 15 10 Fire 226 | . 46 23 . . 46 111 Melee 44 | . . . . . 32 12 Ram . | . . . . . . . Kick . | . . . . . . . Crush . | . . . . . . . Escape Stasis . | . . . . . . . Rewire . | . . . . . . . Trap . | . . . . . . . Miscellaneous . | . . . . . . . Route ------- -11/Scrapyard -10/Materials (discovered 4 exits: [*Mat x2] / *Min x2) -10/Mines (discovered 2 exits: [*Mat] / *Exi) -10/Exiles -9/Mines -8/Materials (discovered 2 exits: *Fac x2) -7/Factory (discovered 3 exits: *Sto / Low x2) History --------- Turn | Location | Event 31 | -11/Scrapyard | Discovered new exit (range 12) 49 | -11/Scrapyard | Entered Materials 72 | -10/Materials | Identified exit to Mines 316 | -10/Materials | Build established: Mutant 354 | -10/Materials | Discovered new exit (range 10) 832 | -10/Materials | Discovered new exit (range 11) 933 | -10/Materials | Entered Mines 945 | -10/Mines | Discovered new exit (range 8) 1186 | -10/Mines | Assembled infested the area 1191 | -10/Mines | Deemed a non-threat by the Exiles lab entrance 1191 | -10/Mines | Discovered new exit (range 5) 1193 | -10/Mines | Entered Exiles 1204 | -10/Exiles | Met 8R-AWN 1209 | -10/Exiles | Met EX-HEX 1219 | -10/Exiles | Met EX-BIN 1225 | -10/Exiles | Aligned with FarCom system 1225 | -10/Exiles | Given EX-Vault access code 1233 | -10/Exiles | Opened EX-Vault 1235 | -10/Exiles | Found Cloak of Protection 1243 | -10/Exiles | Warned to stay clear of 0b10 Research branches 1254 | -10/Exiles | Met EX-DEC 1258 | -10/Exiles | Learned location of Zion (-7) 1285 | -10/Exiles | Discovered new exit (range 14) 1289 | -10/Exiles | Left Exiles lab with Cloak of Protection 1289 | -10/Exiles | Entered Mines 1304 | -9/Mines | A weapon hastily lodged in a ceiling crevice suddenly fell to the ground 1317 | -9/Mines | Discovered new exit (range 15) 1323 | -9/Mines | Entered Materials 1323 | -8/Materials | Evolved 4 slots: Propulsion x1, Utility x2, Weapon x1 1370 | -8/Materials | Repaired Shotgun 1458 | -8/Materials | Garrison activated, responded to threat 1662 | -8/Materials | Discovered new exit (range 3) 1835 | -8/Materials | Discovered new exit (range 4) 1893 | -8/Materials | Core integrity fell below 50% 1934 | -8/Materials | Lost 9 parts (2p3n3u1w) 1954 | -8/Materials | Entered Factory 1954 | -7/Factory | Evolved 2 slots: Power x1, Propulsion x1 2077 | -7/Factory | Discovered new exit (range 16) 2399 | -7/Factory | Build established: Infiltrator-Mutant 2644 | -7/Factory | Identified exit to Storage 2644 | -7/Factory | Identified exit to Lower Caves 2659 | -7/Factory | Lost 6 parts (3p2u1w) 2860 | -7/Factory | Destroyed 7 combat bots 2973 | -7/Factory | Cargo convoy interrupted 2977 | -7/Factory | Core integrity fell below 50% 3071 | -7/Factory | Lost 7 parts (1p2n1u3w) 3225 | -7/Factory | Lost 3 parts (1p1u1w) 3340 | -7/Factory | Self-destructed Last Messages --------------- Imp. Hover Unit destroyed. Acquired Prototype Energy Gun. Identified Prc. Shock Rifle. Faulty integration triggers energy drain (-101). Slug penetrates Wall. Dropped Faulty Prc. Shock Rifle. G-47 Trooper destroyed. U-05 Engineer lays Concrete. G-47 Trooper IFF system glitched. U-05 Engineer lays Concrete. Hpw. Shotgun destroyed. Lgt. Deuterium Engine destroyed. Lgt. Ion Engine destroyed. Critical hit (Blast). W-25 Informer destroyed. Prc. Shock Rifle destroyed. Penetrated by Slug. Imp. Heat Sink destroyed. Imp. Hover Unit destroyed. Knocked back. Map ----- +----------------------------------------------------+ | ????????????????????????????????????????????????## | | ????????????????????????????????????????????????# | | ????????????????????????????????????????????????# | | ????????????????????????????????????????????????# | | ????????????????????????????????????????????????# | | ????????????????????????????????????????????????# | | ????????????????????????????????????????????????# | | ???????????????????????????????????????????????## | | ????????????????????????????????????????######## | | ????????????????????????????????????????#! # # | | ??????????????????????? ??????????????# ^# # | | ????????????????????? ??????????????# " " + + | | ???????????????????? ??????????????# "Y" ### | | ????????????????????; H ??????????????# """ #?# | | ????????????????????# ??????????????# #?# | | ????????????????????#g ??????????????########?# | | ????????????????????# g ???????????????????????# | | ???=????????????????# = #????????????########??? | | ????????????????????# *%= #????????????# #"" | | ????????????????????# g #????????????# """" #"" | | ????????????????????# * #???#######??# """" #"" | | ????????????????????#[% #?? ??# """" #"S | | ????????????????????# #? ???# """" "" | | ????????????????????# [[+ """ ????# """" " | | ????????????????????+ ![%# """ ??? # """" | | ????????????????????# [@; ! """ ??? # """" | | ????????????????????# # # | | ????????????????????# %%u#??"" """ # """" | | ?????????????????? # #???? ""? # """" #/ | | ??????????????????? # #???? ? "???# """" # | | ????????????????????+ u #???" ???????#! """" # | | ????????????????????# #???" ???????# """" + | | ????????????????????# #??? ???????# """" ## | | ????????????????????# #??#+#???????# """" ## | | ????????????????????# #??# #???????# ## | | ????????????????????# #### ############+##### | | ????????????????##### | | ?????????????????[ + % | | ????????????????????# % | | ????????????????????# ! | | ????????????????????# !% | | ????????????????????#########+############ ### | | ???????????????????????# """= ! #????# ### | | ???????????????????????# "Y" = #????# #?? | | ???????????????????????# " " """ #????# ### | | ???????????????????????# % """ #????# | | ???????????????????????# ==""" #????# ### | | ???????????????????????# #????# #?? | | ???????????????????????# """ """ #????# #?? | | ???????????????????????# """ """ #????# #?? | +----------------------------------------------------+ Best States ------------- Heat Dissipation 59 Energy Generation 24 Energy Capacity 275 Matter Stores 300 Matter Capacity 300 Sight Range 16 Terrain Scan Density 10 ECM Strength 1 Jamming Range 12 Additional Mass Support 9 Base Temperature (-) 100 Resistance: KI 20 Resistance: TH 20 Resistance: EX 20 Resistance: EM 20 Resistance: I 20 Resistance: S 20 Resistance: P 20 Evasion (%) 64 Targeting Accuracy 8 Target Analysis 5 Offensive Hacking 10 Item Schematics ----------------- None Robot Schematics ------------------ None Fabricated ------------ Nothing Alien Tech Used ----------------- None Achievements -------------- None Challenges ------------ None Game ------ Seed MissileTitaniumMallet Manual? 0 Play Time 00:37:09 Cumulative 47.0 hours Start 2024.08.31 @ 14:58:53 End 2024.08.31 @ 15:34:49 Sessions 1 Manual Loads 0 Difficulty Adventurer Special Mode None Game No. 61 Rogue 13 Adventurer 48 Explorer 0 Win Type - Total 0 Types 0/0/0/0/0/0/0/0/0 Lore% 39 Gallery% 45 Achievement% 38 Wizard Run 0 Options --------- Layout 1 ASCII 0 Keyboard 0 Movement Mouse Keybinds 0 Fullscreen 1 Font 24/Smallcaps Map View 50x35 Zoom Use 0% Tactical HUD 0 Map Filters NONE Filters NONE Steam 1 RUN: 059a3d64-e088-4f8d-8b51-d00a1a4b014c